Cogmind - Beta 11 @@@ ROGUE MODE // 2022.04.10 @ 10:56:19 Player: Jezoensis Result: Destroyed by D-53 Grenadier with Mini Grenade Launcher Performance ------------- Evolutions (0) 0 Regions Visited (4) 800 Robots Destroyed (25) 125 Value Destroyed (472) 472 Prototype IDs (23) 460 Alien Tech Used (0) 0 Bonus (300) 300 TOTAL SCORE: 2157 Bonus ------- Aligned with FarCom 300 Cogmind --------- Core Integrity 0/250 Matter 300/300 Energy 88/100 System Corruption 0% Temperature Cool (0) Movement Core (350) Ox6 Location -9/Mines Parts ------- > --- POWER (1) -------- (None) > --- PROPULSION (2) --- (None) > --- UTILITY (2) ------ Large Storage Unit Improved Terrain Scanner > --- WEAPON (2) ------- (None) > --- INVENTORY (15) --- Improved Ion Engine Medium Storage Unit High-capacity Storage Unit High-capacity Matter Pod (200) Trap Reconfigurator Autogun Autogun Grenade Launcher Rocket Launcher Mining Laser Peak State ------------ > --- POWER ------------ Improved Ion Engine > --- PROPULSION ------- Aluminum Leg Aluminum Leg > --- UTILITY ---------- Large Storage Unit Improved Terrain Scanner > --- WEAPON ----------- Autogun Autogun > --- INVENTORY -------- Improved Ion Engine Aluminum Leg High-capacity Storage Unit High-capacity Matter Pod Trap Reconfigurator Autogun Autogun Grenade Launcher Mining Laser [Rating: 14] Favorites ----------- Power Improved Ion Engine Engine Improved Ion Engine Propulsion Aluminum Leg Leg Aluminum Leg Utility Improved Terrain Scanner Device Improved Terrain Scanner Storage Small Storage Unit Protection Medium Armor Plating Weapon Autogun Energy Gun Medium Laser Ballistic Gun Autogun Special Weapon Mining Laser Build | -11 -10 -10 -10 -9 ------- Run | Scr Mat Min Exi Min Slots Evolved . | . . . . . Power . | . . . . . Propulsion . | . . . . . Utility . | . . . . . Weapon . | . . . . . Parts Attached 22 | 7 13 . 1 1 Power 2 | 1 1 . . . Engine 2 | 1 1 . . . Core . | . . . . . Reactor . | . . . . . Propulsion 5 | 2 2 . . 1 Treads . | . . . . . Leg 5 | 2 2 . . 1 Wheel . | . . . . . Hover . | . . . . . Flight . | . . . . . Utility 8 | 2 5 . 1 . Device 5 | 1 4 . . . Storage 2 | 1 . . 1 . Processor . | . . . . . Hackware . | . . . . . Protection 1 | . 1 . . . Artifact . | . . . . . Weapon 7 | 2 5 . . . Energy Gun 4 | 2 2 . . . Energy Cannon . | . . . . . Ballistic Gun 2 | . 2 . . . Ballistic Cannon . | . . . . . Launcher . | . . . . . Special Weapon 1 | . 1 . . . Impact Weapon . | . . . . . Slashing Weapon . | . . . . . Piercing Weapon . | . . . . . Special Melee Weapon . | . . . . . Unidentified Prototypes . | . . . . . Parts Lost 8 | . 2 . . 6 Power 1 | . . . . 1 Propulsion 5 | . 2 . . 3 Utility . | . . . . . Weapon 2 | . . . . 2 Highest Loss Streak 5 | . 2 . . 5 To Critical Strikes . | . . . . . Average Slot Usage (%) 98 | . 98 100 100 96 Engine 13 | . 14 14 14 10 Leg 28 | . 28 28 28 28 Device 13 | . 12 14 14 14 Storage 14 | . 14 14 14 14 Energy Gun 4 | . 8 . . . Ballistic Gun 23 | . 18 28 28 28 Naked Turns . | . . . . . Heaviest Build 34 | 12 19 19 34 34 Greatest Support 20 | 20 20 20 20 20 Greatest Overweight (x) 1 | . . . 1 1 Average Overweight (x) . | . . . . 1 Largest Inventory Capacity 15 | 8 8 8 15 15 Average Capacity 10 | 7 8 8 13 15 Most Carried 11 | 4 8 7 10 11 Average Carried 7 | 2 7 7 8 10 Final Capacity 15 | 8 8 8 15 15 Final Carried 10 | 4 7 7 10 10 Class Distribution -------------------- 87% | Mutant 12% | Skirmisher Dominant Class ---------------- Mutant | -10/Materials Mutant | -10/Mines Mutant | -10/Exiles Skirmisher | -9/Mines Resources | -11 -10 -10 -10 -9 ----------- Run | Scr Mat Min Exi Min Matter Collected 868 | 267 471 . 112 18 Remotely . | . . . . . Salvage Created 802 | 50 739 . . 13 Parts 56 | 11 40 . . 5 Haulers Intercepted 1 | . 1 . . . Recyclers Shooed 3 | . 3 . . . Parts Field Recycled . | . . . . . Retrieved Matter . | . . . . . Parts Self-Destructed . | . . . . . Prevented . | . . . . . Kills | -11 -10 -10 -10 -9 ------- Run | Scr Mat Min Exi Min Combat Hostiles Destroyed 13 | . 13 . . . Guns 13 | . 13 . . . Classes Destroyed 8 | 1 7 . . . Worker 3 | . 3 . . . Builder 1 | . 1 . . . Tunneler 4 | 3 . . . 1 Hauler 1 | . 1 . . . Recycler 2 | . 2 . . . Watcher 1 | . 1 . . . Swarmer 3 | . 3 . . . Grunt 10 | . 10 . . . Best Kill Streak 6 | 2 6 . . 1 Combat Bots Only 3 | . 3 . . . Max Kills in Single Turn 2 | 1 2 . . 1 Gunslinging 1 | . 1 . . . Exploded . | . . . . . Melee . | . . . . . Uniques/NPCs Destroyed . | . . . . . Combat | -11 -10 -10 -10 -9 -------- Run | Scr Mat Min Exi Min Damage Taken 1119 | . 552 . . 567 Core 266 | . 69 . . 197 Absorbed by Shields . | . . . . . Core Remaining (%) 100 | 100 . . . . Volleys Fired 79 | 6 70 . . 3 Largest 2 | 2 2 . . 2 Hottest 100 | 90 100 . . 46 Shots Fired 149 | 12 131 . . 6 Gun 147 | 12 129 . . 6 Cannon . | . . . . . Launcher . | . . . . . Special 2 | . 2 . . . Kinetic 108 | . 102 . . 6 Thermal 41 | 12 29 . . . Explosive . | . . . . . Electromagnetic . | . . . . . Robot Hit Streak 9 | 3 9 . . 3 Robot Miss Streak 5 | 1 5 . . 1 Penetration Max . | . . . . . Secondary Targets 2 | . 2 . . . Max Gunslinging Chain 1 | . 1 . . . Shots Hit Robots 92 | 8 79 . . 5 Core Hits 37 | 4 32 . . 1 Critical Kills . | . . . . . Critical Parts Destroyed . | . . . . . Critical Strikes 1 | 1 . . . . Burn 1 | 1 . . . . Melee Attacks . | . . . . . Impact . | . . . . . Slashing . | . . . . . Piercing . | . . . . . Sneak Attacks . | . . . . . Combat Hostiles . | . . . . . Follow-up Attacks . | . . . . . Damage Inflicted 1356 | 94 1190 . . 72 Guns 1342 | 94 1176 . . 72 Cannons . | . . . . . Explosions . | . . . . . Melee . | . . . . . Ramming 14 | . 14 . . . Kinetic 1043 | . 971 . . 72 Thermal 299 | 94 205 . . . Explosive . | . . . . . Electromagnetic . | . . . . . Impact . | . . . . . Slashing . | . . . . . Piercing . | . . . . . Highest Corruption . | . . . . . Average Corruption . | . . . . . Corruption Purged . | . . . . . Corruption Blocked . | . . . . . Overload Shots . | . . . . . Overflow Damage . | . . . . . Projectiles . | . . . . . Explosions . | . . . . . Melee . | . . . . . Knockbacks . | . . . . . Impact . | . . . . . Kinetic . | . . . . . Secondary . | . . . . . Self-Inflicted Damage . | . . . . . Shots . | . . . . . Rammed . | . . . . . Targets Rammed 2 | . 2 . . . Kicked 2 | . 2 . . . Crushed . | . . . . . Highest Temperature 228 | 45 228 . . 8 Average Temperature 48 | 19 52 . . 6 Received Heat Transfer 302 | . 282 . . 20 Effects 1 | . 1 . . . Interference 1 | . 1 . . . Siege Activations . | . . . . . Robots Corrupted . | . . . . . Combat Hostiles . | . . . . . Parts Fried . | . . . . . Impact Corruptions . | . . . . . Robots Melted . | . . . . . Combat Hostiles . | . . . . . Parts Melted . | . . . . . Heat Transferred 844 | 322 522 . . . Parts Sabotaged . | . . . . . Parts Stolen . | . . . . . Parts Stripped . | . . . . . Power Chain Reactions . | . . . . . Missiles Intercepted . | . . . . . Alert | -11 -10 -10 -10 -9 ------- Run | Scr Mat Min Exi Min Peak Influence 191 | 15 191 74 . 5 Initial 74 | . 9 74 . . Average 54 | 5 73 74 . 2 Maximum Alert Level . | . . . . . Low Security (%) 100 | 100 100 100 . 100 Level 1 . | . . . . . Level 2 . | . . . . . Level 3 . | . . . . . Level 4 . | . . . . . Level 5 . | . . . . . High Security . | . . . . . Max Security . | . . . . . Squads Dispatched 4 | . 4 . . . Investigation . | . . . . . Extermination . | . . . . . Reinforcement 4 | . 4 . . . Assault . | . . . . . Garrison . | . . . . . Intercept . | . . . . . Searches Triggered . | . . . . . Construction Impeded . | . . . . . Haulers Reinforced . | . . . . . Active Scanning Responses . | . . . . . Cargo Convoy Interrupts . | . . . . . Stealth | -11 -10 -10 -10 -9 --------- Run | Scr Mat Min Exi Min Distress Signals 3 | . 3 . . . Communications Jammed . | . . . . . Distress Signals . | . . . . . Times Spotted 31 | . 22 . . 9 Peak Tracking Total 8 | . 3 . . 8 Tactical Retreats 1 | . . . . 1 Traps | -11 -10 -10 -10 -9 ------- Run | Scr Mat Min Exi Min Traps Triggered 1 | . 1 . . . Indirectly . | . . . . . Trap Hack Attempts . | . . . . . Triggered . | . . . . . Disarmed . | . . . . . Reprogrammed . | . . . . . Reused . | . . . . . Traps Extracted . | . . . . . Installed . | . . . . . Triggered . | . . . . . Machines | -11 -10 -10 -10 -9 ---------- Run | Scr Mat Min Exi Min Machines Disabled 1 | . 1 . . . Max in Single Turn 1 | . 1 . . . Machines Sabotaged . | . . . . . Garrisons Compromised . | . . . . . Overloaded Fab Kills . | . . . . . Hacking | -11 -10 -10 -10 -9 --------- Run | Scr Mat Min Exi Min Machines Accessed 6 | . 5 . 1 . Terminals 4 | . 4 . . . Fabricators . | . . . . . Repair Stations . | . . . . . Recycling Units 1 | . 1 . . . Scanalyzers . | . . . . . Garrison Access . | . . . . . Total Hacks 16 | . 15 . 1 . Successful 8 | . 7 . 1 . Failed 7 | . 7 . . . Catastrophic . | . . . . . Database Lockouts 1 | . 1 . . . Manual 13 | . 12 . 1 . Terminals 14 | . 14 . . . Fabricators . | . . . . . Repair Stations . | . . . . . Recycling Units 1 | . 1 . . . Scanalyzers . | . . . . . Garrison Access . | . . . . . Terminal Hacks 6 | . 5 . 1 . Robot Analysis 2 | . 2 . . . Unreport Threat 1 | . 1 . . . Locate Traps 1 | . 1 . . . Hauler Manifests 1 | . 1 . . . EX-Prototype ID Bank 1 | . . . 1 . Fabricator Hacks . | . . . . . Repair Station Hacks . | . . . . . Recycling Unit Hacks . | . . . . . Scanalyzer . | . . . . . Garrison Access Hacks . | . . . . . Unauthorized Hacks 2 | . 2 . . . Terminals 1 | . 1 . . . Assimilate 1 | . 1 . . . Fabricators . | . . . . . Repair Stations . | . . . . . Recycling Units 1 | . 1 . . . Recyclers 1 | . 1 . . . Scanalyzers . | . . . . . Garrison Access . | . . . . . Data Cores Recovered . | . . . . . Used . | . . . . . Hacking Detections 5 | . 5 . . . Full Trace Events . | . . . . . Feedback Events . | . . . . . Feedback Blocked . | . . . . . Robot Schematics Acquired . | . . . . . Robots Built . | . . . . . Authchips . | . . . . . Time . | . . . . . Total Robot Build Rating . | . . . . . Part Schematics Acquired . | . . . . . Parts Built . | . . . . . Authchips . | . . . . . Time . | . . . . . Total Part Build Rating . | . . . . . Parts Repaired . | . . . . . Time . | . . . . . Parts Recycled . | . . . . . Recycled Matter . | . . . . . Retrieved Matter . | . . . . . Retrieved Components . | . . . . . Parts Scanalyzed . | . . . . . Part Schematics Acquired . | . . . . . Parts Damaged . | . . . . . Bothacking | -11 -10 -10 -10 -9 ------------ Run | Scr Mat Min Exi Min Used RIF Installer . | . . . . . Robots Hacked . | . . . . . Non-combat . | . . . . . Combat . | . . . . . Robot Hacks Applied . | . . . . . Relay Couplers Released . | . . . . . Fabnet Peak Effective % . | . . . . . Robots Rewired . | . . . . . Allies Hacked . | . . . . . Hacks Repelled . | . . . . . Allies | -11 -10 -10 -10 -9 -------- Run | Scr Mat Min Exi Min Total Allies . | . . . . . Largest Group . | . . . . . Highest-Rated Group . | . . . . . Highest-Rated Ally . | . . . . . Total Orders . | . . . . . Ally Attacks . | . . . . . Total Damage . | . . . . . Kills . | . . . . . Allies Corrupted . | . . . . . Allies Melted . | . . . . . Intel | -11 -10 -10 -10 -9 ------- Run | Scr Mat Min Exi Min Robot Analysis Total 2 | . 2 . . . Derelict Logs Recovered 2 | . . . . 2 Drone Launches . | . . . . . Drone Recoveries . | . . . . . Exploration | -11 -10 -10 -10 -9 ------------- Run | Scr Mat Min Exi Min Turns Passed 1406 | 77 684 20 446 179 Spaces Moved 786 | 46 371 17 263 89 Core 19 | 19 . . . . Treads . | . . . . . Legs 767 | 27 371 17 263 89 Wheels . | . . . . . Hover . | . . . . . Flight . | . . . . . Fastest Speed 50 | 50 120 120 120 190 Average Speed 142 | 91 120 120 168 190 Slowest Speed 190 | 120 120 120 190 190 Overloaded Moves . | . . . . . Propulsion Burnouts . | . . . . . Robots Hopped . | . . . . . Cave-ins Triggered . | . . . . . Exploration Rate (%) 35 | 3 71 6 65 30 Regions Visited 4 Branch Regions 3 Pre-discovered Areas 2 | . . . . 2 Known Exits Taken . | . . . . . Unknown Exits Taken 4 | 1 1 1 1 . Scrap Searched 1 | . . . . 1 Spaces Dug 2 | . 2 . . . Terrain Destroyed 2 | . 2 . . . Melee . | . . . . . Projectile 2 | . 2 . . . AOE . | . . . . . Terrain Rammed . | . . . . . Walls Destroyed . | . . . . . Machines Disabled . | . . . . . Actions | -11 -10 -10 -10 -9 --------- Run | Scr Mat Min Exi Min Total 943 | 66 500 16 267 94 Wait 22 | 2 20 . . . Move 782 | 45 370 16 262 89 Hop . | . . . . . Pick Up 22 | 6 12 . 3 1 Fast Attach 7 | 5 2 . . . Attach 7 | 2 4 . . 1 Detach 2 | . 2 . . . Swap 8 | . 7 . 1 . Drop 12 | . 11 . 1 . Fire 79 | 6 70 . . 3 Melee . | . . . . . Ram . | . . . . . Kick 2 | . 2 . . . Crush . | . . . . . Escape Stasis . | . . . . . Rewire . | . . . . . Trap . | . . . . . Miscellaneous . | . . . . . Route ------- -11/Scrapyard -10/Materials (discovered 2 exits: [*Mat] / [*Min]) -10/Mines -10/Exiles -9/Mines (discovered 1 exit: [*Mat]) History --------- Turn | Location | Event 10 | -11/Scrapyard | Discovered new exit (range 15) 78 | -11/Scrapyard | Entered Materials 300 | -10/Materials | Build established: Mutant 673 | -10/Materials | Discovered new exit (range 3) 711 | -10/Materials | Discovered new exit (range 16) 738 | -10/Materials | Central database locked down 762 | -10/Materials | Entered Mines 777 | -10/Mines | Deemed a non-threat by the Exiles lab entrance 777 | -10/Mines | Discovered new exit (range 5) 782 | -10/Mines | Entered Exiles 812 | -10/Exiles | Met 8R-AWN 832 | -10/Exiles | Met EX-HEX 939 | -10/Exiles | Met EX-BIN 962 | -10/Exiles | Aligned with FarCom system 964 | -10/Exiles | Given EX-Vault access code 1008 | -10/Exiles | Opened EX-Vault 1019 | -10/Exiles | Found Trap Reconfigurator 1060 | -10/Exiles | Warned to stay clear of 0b10 Research branches 1086 | -10/Exiles | Exiles lab attacked by MAIN.C 1213 | -10/Exiles | Discovered new exit (range 10) 1228 | -10/Exiles | Left Exiles lab with Trap Reconfigurator 1228 | -10/Exiles | Entered Mines 1253 | -9/Mines | Received a Rocket Launcher from a helpful Derelict 1297 | -9/Mines | Learned location of Zion (-7) 1346 | -9/Mines | Discovered new exit (range 4) 1366 | -9/Mines | Assembled infested the area 1401 | -9/Mines | Core integrity fell below 50% 1404 | -9/Mines | Core integrity fell below 20% 1407 | -9/Mines | Destroyed by D-53 Grenadier with Mini Grenade Launcher Last Messages --------------- 01366_ ALERT: Infestation in the mines, dispatching Demolisher response squad. 01367_ The unstable cave ceiling collapses. 01367_ Imp. Ion Engine destroyed. 01367_ GM-J5T destroyed. 01392_ The unstable cave ceiling collapses. 01398_ Aluminum Leg destroyed. 01399_ Knocked back. 01400_ as-68149 destroyed. 01400_ as-02894 destroyed. 01400_ as-93558 destroyed. 01400_ as-16403 destroyed. 01400_ Autogun destroyed. 01400_ as-97072 destroyed. 01401_ The unstable cave ceiling collapses. 01401_ U-05 Engineer destroyed. 01401_ R-06 Scavenger collects Lgt. Ion Engine. 01406_ Autogun destroyed. 01406_ Aluminum Leg destroyed. 01406_ R-06 Scavenger destroyed. Map ----- +----------------------------------------------------+ | ??????????????????????????######## ##???????? # | | ???????????????????? ?????# ###??? ?? ## | | ???????????????????? ?????# ##??????#? | | ????????????????????? ##### ###?????# | | ?????????????????????? ???????# #??????? | | ?????????????????????????????????# #??????? | | ?????????????????????????????????# ##?????? | | ????????????????????????????????## #??????? | | ????????????????????????????????# ##?????? | | ??????????????? ????????????????# ##????? | | ??????????????????????#????#???### ##???? | | ?????????????????###??????#??????#### #???? | | ????????????????????????????????????## ##### | | ??????????????????????#????????#?????## |## | | ????????????????????????????#?#???????######%## | | ???????????????????#????#??#???????#???????#%## | | ??????????#????????????????????????????????#=## "" | | ???????????????????????##???#?????????######% "" | | ???????????????????????????#?????#????# ## "" | | " ????????????##???#?????????#??????# !! # | | ####### ######??###?????????# ! ### | | % ## ## ########### !! #?? | | ???# ####### d ! #??? | | ?????????????## ! ########## #??? | | ?????????????# # a *% ###???????# #??? | | ???????????#??# @% ##?????##########??? | | ??????????????# d < #?????????????????? | | ??????????#???## #????????#????????? | | ??????? ???????## ##?#???????????????? | | ????????????????## ###?????????????????#? | | ?????????????????### ## ###????????????????????? | | ???????????????????# ######??????????????????##??? | | ????????????#?????? u#????????????????#??????????? | | ?????????????????? ???#???????????????????????? | | ????????????????? ????????????????? ??"??????? | | ????????????????# ???????????????????????????? | | ????????????????## ????????????????????????#??? | | ?????????????????# ???????????????#???????????? | | ?????????????????# ???????????????????????????? | | ?????????????????# ??#????????????????????????? | | ?????????????????# ???????????????????????????? | | ??????????????????? #???????????????????????????? | | ??????????????????? ????????????????????????????? | | ?????????????????????????????????????????????????? | | ?????????????????????????????????????????????????? | | ?????????????????????????????????????????????????? | | ?????????????????????????????????????????????????? | | ?????????????????????????????????????????????????? | | ?????????????????????????????????????????????????? | | ?????????????????????????????????????????????????? | +----------------------------------------------------+ Best States ------------- Heat Dissipation 25 Energy Generation 12 Energy Capacity 265 Matter Stores 300 Matter Capacity 300 Sight Range 16 Terrain Scan Range 16 Terrain Scan Density 10 Armor Coverage 225 Evasion (%) 55 Item Schematics ----------------- None Robot Schematics ------------------ None Fabricated ------------ Nothing Alien Tech Used ----------------- None Achievements -------------- None Challenges ------------ None Game ------ Seed EtherialPointBoosters Manual? 0 Play Time 00:14:11 Cumulative 586.3 hours Start 2022.04.10 @ 10:42:44 End 2022.04.10 @ 10:56:19 Sessions 1 Manual Loads 0 Difficulty Rogue Special Mode None Game No. 291 Rogue 164 Adventurer 125 Explorer 2 Win Type - Total 55 Types 47/3/2/1/1/0/0/0/1 Lore% 73 Gallery% 85 Achievement% 68 Wizard Run 0 Options --------- ASCII 0 Keyboard 1 Movement Numpad Keybinds 0 Fullscreen 1 Font 36/TerminusFine Map View 76x50 Tactical HUD 1 Map Filters NONE Filters NONE Steam 1 RUN: 1f6159a2-c1ba-48d1-9407-492c1bdb3cc6